Cogmind - Beta 16 @@@ ROGUE MODE // 2026.01.05 @ 18:19:18 Player: ILikeVoltron Result: Self-destructed Performance ------------- Evolutions (4) 2000 Regions Visited (10) 2000 Robots Destroyed (79) 395 Value Destroyed (2279) 2279 Prototype IDs (7) 140 Alien Tech Used (0) 0 Bonus (500) 500 TOTAL SCORE: 7314 Bonus ------- Entered DSFs 500 Cogmind --------- Core Integrity 774/850 Matter 218/300 Energy 290/290 System Corruption 0% Temperature Cool (0) Movement Rolling (115) Ox1 Location -6/DSF Parts ------- > --- POWER (2) -------- Improved Deuterium Engine > --- PROPULSION (4) --- Armored Treads Armored Huge Wheel > --- UTILITY (6) ------ Improved Heat Sink Advanced Visual Processing Unit Advanced Terrain Scan Processor Recoil Stabilizer Hardened Medium Armor Plating > --- WEAPON (3) ------- Plasma Rifle Plasma Rifle Coil Gun > --- INVENTORY (5) ---- Aluminum Leg Compact Battery (200) Coil Gun Rocket Launcher Peak State ------------ > --- POWER ------------ Improved Deuterium Engine Neutrino Core > --- PROPULSION ------- Armored Treads Medium Treads Armored Huge Wheel > --- UTILITY ---------- Improved Heat Sink Advanced Visual Processing Unit Advanced Terrain Scan Processor Recoil Stabilizer Propulsion Shielding Insulated Plating > --- WEAPON ----------- Plasma Rifle Plasma Rifle Coil Gun > --- INVENTORY -------- Aluminum Leg Compact Battery Hardened Medium Armor Plating Gauss Rifle Rocket Launcher [Rating: 58] Favorites ----------- Power Light Ion Engine Engine Light Ion Engine Power Core Neutrino Core Propulsion Light Treads Treads Light Treads Leg Improved Aluminum Leg Wheel Wheel Hover Unit Cooled Airjet Utility Advanced Terrain Scan Processor Device Seismic Detector Storage Huge Storage Unit Processor Advanced Terrain Scan Processor Hackware Hacking Suite Protection Hardened Light Armor Plating Weapon Shotgun Energy Gun Improved EM Shotgun Energy Cannon Plasma Cannon Ballistic Gun Shotgun Ballistic Cannon Bore Cannon Launcher Rocket Launcher Special Weapon Mining Laser Impact Weapon Hammer Slashing Weapon Ripper Build | -11 -10 -9 -8 -7 -7 -7 -7 -7 -6 -6 ------- Run | Yrd Mat Mat Mat Fac Was Fac Low Low Fac DSF Slots Evolved 8 | . . 2 2 2 . . . . 2 . Power 1 | . . . . . . . . . 1 . Propulsion 2 | . . 1 1 . . . . . . . Utility 4 | . . 1 1 1 . . . . 1 . Weapon 1 | . . . . 1 . . . . . . Parts Attached 92 | 1 9 18 31 3 2 4 13 5 2 4 Power 10 | . 1 2 3 . . 1 1 1 1 . Engine 7 | . 1 2 3 . . . . 1 . . Core 3 | . . . . . . 1 1 . 1 . Reactor . | . . . . . . . . . . . Propulsion 28 | . 2 6 12 . 1 1 3 3 . . Treads 10 | . 2 3 3 . . . 1 1 . . Leg 10 | . . 3 5 . . . 1 1 . . Wheel 7 | . . . 4 . 1 . 1 1 . . Hover 1 | . . . . . . 1 . . . . Flight . | . . . . . . . . . . . Utility 29 | 1 3 4 10 1 1 1 5 1 1 1 Device 7 | 1 . 1 3 . 1 . . . 1 . Storage 6 | . 3 . 1 . . . 2 . . . Processor 5 | . . . 3 1 . . 1 . . . Hackware 1 | . . . . . . 1 . . . . Protection 10 | . . 3 3 . . . 2 1 . 1 Artifact . | . . . . . . . . . . . Weapon 25 | . 3 6 6 2 . 1 4 . . 3 Energy Gun 6 | . 1 . 3 . . . . . . 2 Energy Cannon 1 | . . . . 1 . . . . . . Ballistic Gun 10 | . . 5 2 1 . . 1 . . 1 Ballistic Cannon 1 | . . . . . . . 1 . . . Launcher 3 | . . 1 1 . . . 1 . . . Special Weapon 1 | . 1 . . . . . . . . . Impact Weapon 2 | . 1 . . . . 1 . . . . Slashing Weapon 1 | . . . . . . . 1 . . . Piercing Weapon . | . . . . . . . . . . . Special Melee Weapon . | . . . . . . . . . . . Unidentified Prototypes 5 | . . 1 1 1 . 2 . . . . Parts Lost 53 | . 2 4 27 . 4 2 8 2 . 4 Power 8 | . 1 . 3 . 1 . 1 1 . 1 Propulsion 19 | . . 2 11 . 2 1 2 . . 1 Utility 16 | . . 2 7 . 1 1 3 . . 2 Weapon 10 | . 1 . 6 . . . 2 1 . . Highest Loss Streak 16 | . 1 2 16 . 4 2 3 2 . 4 To Critical Strikes . | . . . . . . . . . . . Average Backups 11 | 7 8 12 17 25 18 4 4 5 3 4 Power . | 1 1 1 . . . . . 1 . . Propulsion 2 | 3 1 1 3 3 2 1 1 1 1 1 Utility 5 | . 4 5 9 13 9 2 3 3 2 2 Weapon 3 | 1 2 3 4 9 6 1 . . . 1 Tool/Special . | . . . . . . . . . . . Unused Backups 35 | 7 4 3 4 . 15 . . . . 2 Power 3 | 1 1 1 . . . . . . . . Propulsion 5 | 3 1 . 1 . . . . . . . Utility 12 | 1 1 1 1 . 8 . . . . . Weapon 15 | 2 1 1 2 . 7 . . . . 2 Tool/Special . | . . . . . . . . . . . Average Slot Usage (%) 88 | . 99 98 90 92 74 44 50 82 85 86 Engine 7 | . 13 11 7 7 4 . . . 6 6 Treads 10 | . 23 10 8 . . . . 6 13 13 Leg 11 | . 4 20 9 23 15 . 4 8 . . Wheel 4 | . . . 12 7 7 6 . 1 6 6 Device 7 | . 14 6 10 7 5 6 . . 9 13 Storage 10 | . 14 11 11 7 5 . 2 13 2 . Processor 5 | . . . 6 9 15 15 15 15 13 13 Protection 7 | . . 15 6 7 4 . 5 8 13 7 Energy Gun 3 | . 8 . 6 5 . . . . . 10 Ballistic Gun 11 | . 14 18 8 5 4 . 3 7 6 6 Launcher 1 | . . . 1 7 4 . 3 7 6 1 Impact Weapon 1 | . 3 3 . . . . 1 . . . Peak Build Rating 58 | 8 8 20 27 34 34 35 41 41 48 58 Average Rating 20 | 7 7 16 22 30 25 28 24 39 47 54 On Entrance 25 | 6 8 8 20 26 34 23 25 41 40 48 Avg Prop Armor Cover (%) 10 | . . 7 11 13 12 12 7 7 14 14 Naked Turns . | . . . . . . . . . . . Heaviest Build 106 | 13 20 100 106 103 103 11 30 30 38 43 Greatest Support 60 | 20 40 60 40 10 10 10 28 28 28 28 Greatest Overweight (x) 10 | . . 2 10 10 10 1 1 1 1 1 Average Overweight (x) 1 | . . . 5 9 4 . . . 1 1 Largest Inventory Capacity 25 | 8 25 25 25 25 25 5 5 5 5 5 Average Capacity 14 | 8 8 13 25 25 18 5 5 5 5 5 Most Carried 25 | 8 10 25 25 25 25 5 5 5 4 5 Average Carried 11 | 7 8 12 17 25 18 4 4 5 3 4 Final Capacity 25 | 8 10 25 25 25 5 5 5 5 5 5 Final Carried 25 | 8 10 25 25 25 5 5 5 5 3 4 Class Distribution -------------------- 52% | Mutant 40% | Scavenger-Mutant 5% | Scavenger-Tank Dominant Class ---------------- Mutant | -10/Materials Mutant | -9/Materials Scavenger-Mutant | -8/Materials Scavenger-Tank | -7/Factory Scavenger-Tank | -7/Waste Mutant | -7/Factory Mutant | -7/Lower Caves Scavenger-Mutant | -7/Lower Caves Scavenger-Mutant | -6/Factory Scavenger-Tank | -6/DSF Resources | -11 -10 -9 -8 -7 -7 -7 -7 -7 -6 -6 ----------- Run | Yrd Mat Mat Mat Fac Was Fac Low Low Fac DSF Matter Collected 2674 | 281 397 864 770 10 . . 241 101 . 10 Remotely . | . . . . . . . . . . . Salvage Created 2966 | 138 565 1000 1087 . . . 116 60 . . Parts 172 | 13 36 69 47 . . . 6 1 . . Haulers Intercepted 6 | . 1 4 1 . . . . . . . Recyclers Shooed 1 | . . . 1 . . . . . . . Parts Field Recycled . | . . . . . . . . . . . Retrieved Matter . | . . . . . . . . . . . Parts Self-Destructed 10 | . . . . . . . 10 . . . Prevented 2 | . . . . . . . 2 . . . Parts Restored . | . . . . . . . . . . . Kills | -11 -10 -9 -8 -7 -7 -7 -7 -7 -6 -6 ------- Run | Yrd Mat Mat Mat Fac Was Fac Low Low Fac DSF Combat Hostiles Destroyed 58 | . 10 19 24 . . . 3 2 . . Guns 45 | . 10 19 15 . . . . 1 . . Cannons 2 | . . . . . . . 2 . . . AOE 11 | . . . 9 . . . 1 1 . . Classes Destroyed 13 | 3 4 2 3 . . . 1 . . . Worker 5 | 2 1 1 1 . . . . . . . Builder 1 | . . . 1 . . . . . . . Tunneler 2 | 2 . . . . . . . . . . Hauler 6 | . 1 4 1 . . . . . . . Recycler 3 | 1 1 1 . . . . . . . . Watcher 4 | . 1 2 1 . . . . . . . Swarmer 12 | . 3 5 4 . . . . . . . Grunt 30 | . 7 6 13 . . . 2 2 . . Brawler 2 | . . 1 1 . . . . . . . Sentry 10 | . . 7 3 . . . . . . . Specialist 2 | . . . 2 . . . . . . . Hunter 1 | . . . . . . . 1 . . . Heavy 1 | . . . 1 . . . . . . . Best Kill Streak 11 | 2 4 11 5 . . . 3 2 . . Combat Bots Only 9 | . 3 9 5 . . . 3 2 . . Max Kills in Single Turn 2 | 1 1 2 2 . . . 1 1 . . Gunslinging 1 | . . 1 . . . . . . . . Exploded 2 | . . . 2 . . . 1 1 . . Melee . | . . . . . . . . . . . Uniques/NPCs Destroyed . | . . . . . . . . . . . Combat | -11 -10 -9 -8 -7 -7 -7 -7 -7 -6 -6 -------- Run | Yrd Mat Mat Mat Fac Was Fac Low Low Fac DSF Hostile Shots Fired 597 | . 61 98 260 . 4 53 81 10 . 30 Missed 202 | . 16 27 84 . . 25 35 3 . 12 Hits 395 | . 45 71 176 . 4 28 46 7 . 18 Melee 4 | . . . . . 4 . . . . . Projectile 391 | . 45 71 176 . . 28 46 7 . 18 Critical Strikes 15 | . 3 2 5 . 3 . . . . 2 Actively Blocked 2 | . . . . . . . . . . 2 Damage Taken 6454 | . 537 838 2960 . 209 307 832 215 . 556 Core 1178 | . 73 124 307 . 101 117 360 20 . 76 Absorbed by Shields 43 | . . . . . . . . . . 43 Redirected to Shielding 92 | . . 47 5 . . . . . . 40 Core Remaining (%) 59 | 100 70 69 44 . . . . 14 . . Volleys Fired 234 | 7 44 70 90 . . . 9 6 . 8 Largest 3 | 2 2 2 2 . . . 2 2 . 3 Hottest 180 | 60 100 46 78 . . . 76 61 . 180 Shots Fired 405 | 14 63 132 162 . . . 12 8 . 14 Gun 379 | 14 58 132 152 . . . 3 6 . 14 Cannon 7 | . . . . . . . 7 . . . Launcher 14 | . . . 10 . . . 2 2 . . Special 5 | . 5 . . . . . . . . . Kinetic 311 | 7 39 132 109 . . . 10 6 . 8 Thermal 11 | . 5 . . . . . . . . 6 Explosive 14 | . . . 10 . . . 2 2 . . Electromagnetic 69 | 7 19 . 43 . . . . . . . Robot Hit Streak 13 | 6 10 12 9 . . . 4 12 . 13 Robot Miss Streak 6 | 1 3 6 6 . . . 3 . . 2 Penetration Max . | . . . . . . . . . . . Secondary Targets 4 | . . 2 2 . . . . . . . Max Gunslinging Chain 1 | . . 1 1 . . . . . . . Shots Hit Robots 287 | 8 40 96 122 . . . 6 8 . 7 Core Hits 156 | 6 21 46 71 . . . 4 4 . 4 Critical Kills 4 | . 1 1 . . . . 2 . . . Critical Parts Destroyed . | . . . . . . . . . . . Critical Strikes 6 | . 2 1 . . . . 2 . . 1 Burn 1 | . . . . . . . . . . 1 Destroy 4 | . 1 1 . . . . 2 . . . Corrupt 1 | . 1 . . . . . . . . . Melee Attacks 4 | . . 4 . . . . . . . . Impact 4 | . . 4 . . . . . . . . Slashing . | . . . . . . . . . . . Piercing . | . . . . . . . . . . . Sneak Attacks 2 | . . 2 . . . . . . . . Combat Hostiles . | . . . . . . . . . . . Follow-up Attacks . | . . . . . . . . . . . Damage Inflicted 5647 | 107 541 1456 2926 . . . 159 261 . 197 Guns 4105 | 107 506 1360 1779 . . . 36 120 . 197 Cannons 31 | . . . . . . . 31 . . . Explosions 1415 | . 35 . 1147 . . . 92 141 . . Melee 96 | . . 96 . . . . . . . . Ramming . | . . . . . . . . . . . Kinetic 3140 | 28 322 1360 1155 . . . 67 120 . 88 Thermal 668 | . 35 . 524 . . . . . . 109 Explosive 856 | . . . 623 . . . 92 141 . . Electromagnetic 887 | 79 184 . 624 . . . . . . . Impact 96 | . . 96 . . . . . . . . Slashing . | . . . . . . . . . . . Piercing . | . . . . . . . . . . . Highest Corruption . | . . . . . . . . . . . Average Corruption . | . . . . . . . . . . . Corruption Purged . | . . . . . . . . . . . Corruption Blocked . | . . . . . . . . . . . Overload Shots . | . . . . . . . . . . . Overflow Damage 94 | . . 44 36 . . . . 14 . . Projectiles . | . . . . . . . . . . . Explosions 50 | . . . 36 . . . . 14 . . Melee 44 | . . 44 . . . . . . . . Knockbacks . | . . . . . . . . . . . Impact . | . . . . . . . . . . . Kinetic . | . . . . . . . . . . . Secondary . | . . . . . . . . . . . Self-Inflicted Damage 242 | . 30 . 126 . . . . 86 . . Shots 8 | . 1 . 5 . . . . 2 . . Rammed 2 | . . . 1 . . 1 . . . . Targets Rammed 2 | . . . 1 . . 1 . . . . Kicked . | . . . . . . . . . . . Crushed . | . . . . . . . . . . . Highest Temperature 129 | . 30 44 129 . . . 6 18 . 12 Average Temperature 17 | . 12 9 30 . . . 4 12 . 6 Received Heat Transfer 1752 | . 300 291 846 . . 48 204 63 . . Siege Activations . | . . . . . . . . . . . Martial Activations . | . . . . . . . . . . . Shielding Activations . | . . . . . . . . . . . Robots Disrupted . | . . . . . . . . . . . Combat Hostiles . | . . . . . . . . . . . Robots Corrupted . | . . . . . . . . . . . Combat Hostiles . | . . . . . . . . . . . Parts Fried 1 | . . . 1 . . . . . . . Impact Corruptions 1 | . . 1 . . . . . . . . Robots Melted . | . . . . . . . . . . . Combat Hostiles . | . . . . . . . . . . . Parts Melted . | . . . . . . . . . . . Heat Transferred 1100 | . . . 750 . . . . . . 350 Parts Sabotaged . | . . . . . . . . . . . Parts Stolen . | . . . . . . . . . . . Parts Stripped . | . . . . . . . . . . . Power Chain Reactions 7 | . 1 . 6 . . . . . . . Alert | -11 -10 -9 -8 -7 -7 -7 -7 -7 -6 -6 ------- Run | Yrd Mat Mat Mat Fac Was Fac Low Low Fac DSF Maximum Alert Level 1 | . . 1 . . . . . . . . Low Security (%) 98 | 100 100 94 100 100 100 100 . . 100 100 Level 1 1 | . . 5 . . . . . . . . Level 2 . | . . . . . . . . . . . Level 3 . | . . . . . . . . . . . Level 4 . | . . . . . . . . . . . Level 5 . | . . . . . . . . . . . High Security . | . . . . . . . . . . . Max Security . | . . . . . . . . . . . Peak Influence 213 | 10 99 213 97 37 . . . . . 15 Initial 61 | . . 33 61 37 . . . . . . Average 62 | 1 46 131 34 17 . . . . . . Influence Increases 1879 | 25 360 555 728 16 . . 130 50 . 15 Destroy 0b10 Robot/C 1160 | . 200 380 480 . . . 60 40 . . Destroy 0b10 Robot/NC 105 | 25 20 40 20 . . . . . . . Destroy Leader 280 | . 34 132 94 . . . 10 10 . . Successful Hack 80 | . 64 . . 16 . . . . . . Disable Machine 15 | . . . 15 . . . . . . . Destroy Structure 89 | . 12 3 74 . . . . . . . Lose Combat Pursuer 150 | . 30 . 45 . . . 60 . . 15 Influence Decreases 1879 | 25 280 489 791 99 . . 130 50 . 15 Entered New Map 178 | . . 47 85 46 . . . . . . Time Decay 1330 | 25 260 412 450 53 . . 100 30 . . Lost Part 371 | . 20 30 256 . . . 30 20 . 15 Squads Dispatched 11 | . 1 2 5 . . 1 . . . 2 Investigation 4 | . 1 1 2 . . . . . . . Extermination . | . . . . . . . . . . . Reinforcement 7 | . . 1 3 . . 1 . . . 2 Assault . | . . . . . . . . . . . Garrison . | . . . . . . . . . . . Intercept . | . . . . . . . . . . . Searches Triggered . | . . . . . . . . . . . Construction Impeded . | . . . . . . . . . . . Haulers Reinforced . | . . . . . . . . . . . Active Scanning Responses . | . . . . . . . . . . . Cargo Convoy Interrupts . | . . . . . . . . . . . Stealth | -11 -10 -9 -8 -7 -7 -7 -7 -7 -6 -6 --------- Run | Yrd Mat Mat Mat Fac Was Fac Low Low Fac DSF Distress Signals 9 | . 2 2 5 . . . . . . . Communications Jammed . | . . . . . . . . . . . Distress Signals . | . . . . . . . . . . . Times Spotted 103 | . 16 29 34 . 6 6 7 2 . 3 Peak Tracking Total 8 | . 4 3 8 . 6 5 4 1 . 3 Tactical Retreats 8 | . 2 . 2 . . . 3 . . 1 Traps | -11 -10 -9 -8 -7 -7 -7 -7 -7 -6 -6 ------- Run | Yrd Mat Mat Mat Fac Was Fac Low Low Fac DSF Traps Triggered 5 | . 1 1 1 1 . . . . . 1 Indirectly . | . . . . . . . . . . . Trap Hack Attempts . | . . . . . . . . . . . Triggered . | . . . . . . . . . . . Disarmed . | . . . . . . . . . . . Reprogrammed . | . . . . . . . . . . . Reused . | . . . . . . . . . . . Traps Extracted . | . . . . . . . . . . . Installed . | . . . . . . . . . . . Triggered . | . . . . . . . . . . . Machines | -11 -10 -9 -8 -7 -7 -7 -7 -7 -6 -6 ---------- Run | Yrd Mat Mat Mat Fac Was Fac Low Low Fac DSF Machines Disabled 1 | . . . 1 . . . . . . . Max in Single Turn 1 | . . . 1 . . . . . . . Machines Repaired . | . . . . . . . . . . . Machines Dismantled . | . . . . . . . . . . . Machines Sabotaged . | . . . . . . . . . . . Overloaded Fab Kills . | . . . . . . . . . . . Hacking | -11 -10 -9 -8 -7 -7 -7 -7 -7 -6 -6 --------- Run | Yrd Mat Mat Mat Fac Was Fac Low Low Fac DSF Machines Accessed 17 | . 9 4 1 1 . 1 . . 1 . Terminals 13 | . 7 2 1 1 . 1 . . 1 . Fabricators . | . . . . . . . . . . . Repair Stations 1 | . 1 . . . . . . . . . Recycling Units 2 | . 1 1 . . . . . . . . Scanalyzers 1 | . . 1 . . . . . . . . Garrison Access . | . . . . . . . . . . . Total Hacks 43 | . 26 8 5 2 . 1 . . 1 . Successful 23 | . 17 3 . 1 . 1 . . 1 . Failed 19 | . 9 4 5 1 . . . . . . Catastrophic 4 | . 2 . 1 1 . . . . . . Database Lockouts 1 | . . 1 . . . . . . . . Manual 22 | . 15 2 5 . . . . . . . Terminals 35 | . 21 5 5 2 . 1 . . 1 . Fabricators . | . . . . . . . . . . . Repair Stations 3 | . 3 . . . . . . . . . Recycling Units 3 | . 2 1 . . . . . . . . Scanalyzers 2 | . . 2 . . . . . . . . Garrison Access . | . . . . . . . . . . . Terminal Hacks 11 | . 7 1 . 1 . 1 . . 1 . Part Schematic 4 | . 3 . . 1 . . . . . . Prototype ID Bank 1 | . . 1 . . . . . . . . Open DSF 2 | . . . . . . 1 . . 1 . Branch Access Points 1 | . 1 . . . . . . . . . Alert Level 1 | . 1 . . . . . . . . . Locate Traps 1 | . 1 . . . . . . . . . Hauler Manifests 1 | . 1 . . . . . . . . . Fabricator Hacks . | . . . . . . . . . . . Repair Station Hacks 1 | . 1 . . . . . . . . . Scan Component 1 | . 1 . . . . . . . . . Recycling Unit Hacks 3 | . 2 1 . . . . . . . . Report Inventory 2 | . 1 1 . . . . . . . . Retrieve Components 1 | . 1 . . . . . . . . . Scanalyzer 1 | . . 1 . . . . . . . . Retrieve Study 1 | . . 1 . . . . . . . . Garrison Access Hacks . | . . . . . . . . . . . Unauthorized Hacks 7 | . 7 . . . . . . . . . Terminals 7 | . 7 . . . . . . . . . Track 2 | . 2 . . . . . . . . . Botnet 5 | . 5 . . . . . . . . . Fabricators . | . . . . . . . . . . . Repair Stations . | . . . . . . . . . . . Recycling Units . | . . . . . . . . . . . Scanalyzers . | . . . . . . . . . . . Garrison Access . | . . . . . . . . . . . Data Cores Recovered . | . . . . . . . . . . . Used . | . . . . . . . . . . . Hacking Detections 13 | . 8 2 1 1 . . . . 1 . Full Trace Events 3 | . 1 1 1 . . . . . . . Feedback Events . | . . . . . . . . . . . Feedback Blocked . | . . . . . . . . . . . Robot Schematics Acquired . | . . . . . . . . . . . Robots Built . | . . . . . . . . . . . Authchips . | . . . . . . . . . . . Time . | . . . . . . . . . . . Total Robot Build Rating . | . . . . . . . . . . . Part Schematics Acquired 4 | . 3 . . 1 . . . . . . Parts Built . | . . . . . . . . . . . Authchips . | . . . . . . . . . . . Time . | . . . . . . . . . . . Total Part Build Rating . | . . . . . . . . . . . Part Studies Acquired 1 | . . 1 . . . . . . . . Parts Repaired . | . . . . . . . . . . . Time . | . . . . . . . . . . . Parts Recycled . | . . . . . . . . . . . Recycled Matter . | . . . . . . . . . . . Retrieved Matter . | . . . . . . . . . . . Retrieved Components 2 | . 2 . . . . . . . . . Parts Scanalyzed . | . . . . . . . . . . . Part Schematics Acquired . | . . . . . . . . . . . Parts Damaged . | . . . . . . . . . . . Bothacking | -11 -10 -9 -8 -7 -7 -7 -7 -7 -6 -6 ------------ Run | Yrd Mat Mat Mat Fac Was Fac Low Low Fac DSF Used RIF Installer . | . . . . . . . . . . . Robots Hacked . | . . . . . . . . . . . Non-combat . | . . . . . . . . . . . Combat . | . . . . . . . . . . . Robot Hacks Applied . | . . . . . . . . . . . Relay Couplers Released . | . . . . . . . . . . . Fabnet Peak Effective % . | . . . . . . . . . . . Robots Rewired . | . . . . . . . . . . . Allies Hacked . | . . . . . . . . . . . Hacks Repelled . | . . . . . . . . . . . Allies | -11 -10 -9 -8 -7 -7 -7 -7 -7 -6 -6 -------- Run | Yrd Mat Mat Mat Fac Was Fac Low Low Fac DSF Total Allies . | . . . . . . . . . . . Largest Group . | . . . . . . . . . . . Highest-Rated Group . | . . . . . . . . . . . Highest-Rated Ally . | . . . . . . . . . . . Total Orders . | . . . . . . . . . . . Ally Attacks . | . . . . . . . . . . . Total Damage . | . . . . . . . . . . . Kills . | . . . . . . . . . . . Allies Corrupted . | . . . . . . . . . . . Allies Melted . | . . . . . . . . . . . Intel | -11 -10 -9 -8 -7 -7 -7 -7 -7 -6 -6 ------- Run | Yrd Mat Mat Mat Fac Was Fac Low Low Fac DSF Active Infowar (turns) 3197 | 100 754 494 653 55 123 75 423 371 67 82 Optics 1196 | . . . . 55 123 75 423 371 67 82 Terrain 978 | . . 493 485 . . . . . . . Seismic 1056 | 100 754 202 . . . . . . . . T.N.C. 168 | . . . 168 . . . . . . . Robot Analysis Total . | . . . . . . . . . . . Derelict Logs Recovered . | . . . . . . . . . . . Drone Launches . | . . . . . . . . . . . Drone Recoveries . | . . . . . . . . . . . Exploration | -11 -10 -9 -8 -7 -7 -7 -7 -7 -6 -6 ------------- Run | Yrd Mat Mat Mat Fac Was Fac Low Low Fac DSF Turns Passed 4737 | 132 754 1233 1336 141 123 75 423 371 67 82 Spaces Moved 2330 | 33 397 604 413 63 84 76 380 184 56 40 Core 126 | . . . . . . . 126 . . . Treads 689 | . 319 208 25 . . . 23 114 . . Legs 661 | 33 78 396 35 . . . 102 17 . . Wheels 746 | . . . 353 63 84 49 48 53 56 40 Hover 108 | . . . . . . 27 81 . . . Flight . | . . . . . . . . . . . Fastest Speed 50 | 120 120 105 140 215 80 50 50 100 115 115 Average Speed 149 | 120 152 151 182 219 143 89 101 188 115 115 Slowest Speed 320 | 120 160 260 320 230 230 115 240 250 115 115 Overloaded Moves . | . . . . . . . . . . . Propulsion Burnouts . | . . . . . . . . . . . Robots Hopped . | . . . . . . . . . . . Potential Cave-ins . | . . . . . . . . . . . Cave-ins Triggered . | . . . . . . . . . . . Exploration Rate (%) 33 | 4 73 51 34 3 77 4 64 15 2 39 Regions Visited 10 Branch Regions 2 Pre-discovered Areas . | . . . . . . . . . . . Known Exits Taken 1 | . . . . . . . . . 1 . Unknown Exits Taken 7 | 1 1 1 1 . . 1 1 1 . . Scrap Searched 6 | . . . . . . . 4 2 . . Spaces Dug 7 | . 5 2 . . . . . . . . Terrain Destroyed 134 | . 11 2 76 . . . 28 17 . . Melee 2 | . . 2 . . . . . . . . Projectile 10 | . 5 . . . . . 5 . . . AOE 122 | . 6 . 76 . . . 23 17 . . Terrain Rammed . | . . . . . . . . . . . Walls Destroyed . | . . . . . . . . . . . Machines Disabled . | . . . . . . . . . . . Actions | -11 -10 -9 -8 -7 -7 -7 -7 -7 -6 -6 --------- Run | Yrd Mat Mat Mat Fac Was Fac Low Low Fac DSF Total 3164 | 111 476 785 836 66 85 81 402 199 58 65 Wait 383 | 67 9 44 261 . . . . . . 2 Move 2322 | 32 396 603 412 63 83 76 379 183 55 40 Hop . | . . . . . . . . . . . Pick Up 70 | 3 10 24 29 . . 1 1 . . 2 Fast Attach 41 | 1 1 8 5 2 1 3 12 6 . 2 Attach 37 | . 1 4 26 . 1 1 1 . 2 1 Detach 3 | . . . 2 . . . . . . 1 Swap 31 | . 7 14 6 1 . . . . 1 2 Drop 33 | 1 8 14 4 . . . . 4 . 2 Fire 234 | 7 44 70 90 . . . 9 6 . 8 Melee 4 | . . 4 . . . . . . . . Ram 1 | . . . 1 . . . . . . . Kick . | . . . . . . . . . . . Crush . | . . . . . . . . . . . Escape Stasis 5 | . . . . . . . . . . 5 Rewire . | . . . . . . . . . . . Trap . | . . . . . . . . . . . Miscellaneous . | . . . . . . . . . . . Route ------- -11/Scrapyard -10/Materials (discovered 4 exits: *Mat x2 / *Min x2) -9/Materials (discovered 2 exits: *Mat x2) -8/Materials -7/Factory -7/Waste -7/Factory -7/Lower Caves -7/Lower Caves -6/Factory -6/DSF History --------- Turn | Location | Event 19 | -11/Scrapyard | Discovered new exit (range 3) 133 | -11/Scrapyard | Entered Materials 147 | -10/Materials | Identified exit to Mines 303 | -10/Materials | Build established: Mutant 393 | -10/Materials | Discovered new exit (range 14) 728 | -10/Materials | Discovered new exit (range 13) 887 | -10/Materials | Entered another Materials area 887 | -9/Materials | Evolved 2 slots: Propulsion x1, Utility x1 1077 | -9/Materials | Discovered new exit (range 15) 1162 | -9/Materials | Destroyed 9 combat bots 1179 | -9/Materials | Build established: Scavenger-Mutant 1626 | -9/Materials | Central database locked down 1652 | -9/Materials | Build established: Mutant 1697 | -9/Materials | Discovered new exit (range 16) 2120 | -9/Materials | Entered another Materials area 2120 | -8/Materials | Evolved 2 slots: Propulsion x1, Utility x1 2431 | -8/Materials | Lost 16 parts (2p6n4u4w) 2813 | -8/Materials | Core integrity fell below 50% 2833 | -8/Materials | Build established: Scavenger-Mutant 3282 | -8/Materials | Lost 4 parts (3n1u) 3423 | -8/Materials | Discovered new exit (range 15) 3456 | -8/Materials | Entered Factory 3456 | -7/Factory | Evolved 2 slots: Utility x1, Weapon x1 3597 | -7/Factory | Sucked down chute 3597 | -7/Factory | Entered Waste 3643 | -7/Waste | Spotted C-40 Crusher 3646 | -7/Waste | Spotted C-40 Crusher 3662 | -7/Waste | Spotted C-40 Crusher 3666 | -7/Waste | Spotted C-40 Crusher 3666 | -7/Waste | Spotted C-40 Crusher 3670 | -7/Waste | Crushed by Compactor (1 part destroyed, 2 dropped) 3673 | -7/Waste | Crushed by Compactor (1 part destroyed, 1 dropped) 3677 | -7/Waste | Crushed by Compactor (1 part destroyed, 2 dropped) 3680 | -7/Waste | Crushed by Compactor (1 part destroyed, 2 dropped) 3693 | -7/Waste | Spotted C-40 Crusher 3707 | -7/Waste | Discovered new exit (range 11) 3711 | -7/Waste | Lost 4 parts (1p2n1u) 3717 | -7/Waste | Found Quantum Capacitor 3720 | -7/Waste | Entered Factory 3782 | -7/Factory | Discovered new exit (range 14) 3795 | -7/Factory | Entered Lower Caves 3820 | -7/Lower Caves | Spotted B-75 Beast 3894 | -7/Lower Caves | Lost 3 parts (1p1n1w) 3900 | -7/Lower Caves | Core integrity fell below 50% 4005 | -7/Lower Caves | Core integrity fell below 20% 4058 | -7/Lower Caves | Lost 3 parts (1n1u1w) 4142 | -7/Lower Caves | Discovered new exit (range 17) 4218 | -7/Lower Caves | Entered another Lower Caves area 4266 | -7/Lower Caves | Lost 3 allies 4515 | -7/Lower Caves | Discovered new exit (range 18) 4589 | -7/Lower Caves | Entered Factory 4589 | -6/Factory | Evolved 2 slots: Power x1, Utility x1 4655 | -6/Factory | Identified exit to DSF 4656 | -6/Factory | Entered DSF 4695 | -6/DSF | Additional patrols routed to DSF 4738 | -6/DSF | Self-destructed Last Messages --------------- 04697_ Field strength at 49. 04698_ Field strength at 23. 04699_ Field strength at 13. 04699_ Stasis field depleted. 04699_ Propulsion Shielding destroyed. 04699_ Knocked back. 04701_ Acquired 10 matter. 04703_ H-61 Shepherd calls for reinforcements. 04703_ ALERT: Hostile activity reported, dispatching reinforcements to area. 04706_ Penetrated by Slug. 04706_ Insulated Plating destroyed. 04706_ Knocked back. 04706_ Slug penetrates A-15 Conveyor. 04708_ Slug penetrates H-61 Shepherd. 04710_ Slug penetrates Wall. 04725_ Slug penetrates X-67 Chaingunner. 04726_ Matter Repository disabled. 04730_ Med. Treads destroyed. 04732_ Neutrino Core destroyed. 04734_ X-67 Chaingunner suffers critical hit (Burn). Map ----- +----------------------------------------------------+ | ???????????????????????????????????????? | | ???????????????????????????????????????? | | ???????????????????????????????????????? | | ???????????????????????????????????????? | | ????????????? ???????????????????????? | | ????????????* ???????????????????????? | | ????????????* ???????????????????????? | | ????????????# ????????????###????????? | | ???????????## #??????????? !!???????? | | ???????????# ??????????# !!???????? | | ???????????? ?????????? ???????? | | ???????????? ?????????? ????????? | | ???????????? ?????????? ????????? | | ???????????? ??????????# !????????? | | ????????????# #??????????# !????????? | | ??????????### H ##?????????# ##???????? | | ??????????#!! [[????????? [#???????? | | ??????????#!! [[????????? [????????? | | ???????????!! [[????????? [????????? | | ??????????##" "##???????## ##???????? | | ??????????#== !!#????????[ #???????? | | ??????????#== !!#????????[ #???????? | | ??????????#== !!########?# #????????? | | ???????????#"^ #?#[[[#[ ### ###??????? | | ??????????### ###[[ #[[## ""####???? | | ??????????# x [ @ """""#???? | | ??????????# % x %""#??????? | | ??????????# [[[//# # ##"""%"#??????? | | ??????????# [[[//#########"""""#??????? | | ??????????##"######???????##"####??????? | | ???????????##??????????????#"#?????????? | | ???????????????????????????#""?????????? | | ???????????????????????????####????????? | | ???????????????????????????????????????? | | ???????????????????????????????????????? | | ???????????????????????????????????????? | | ???????????????????????????????????????? | | | | | | | | | | | | | | | | | | | | | | | | | | | +----------------------------------------------------+ Best States ------------- Heat Dissipation 53 Energy Generation 30 Energy Capacity 715 Matter Stores 300 Matter Capacity 300 Sight Range 20 Terrain Scan Range 16 Terrain Scan Density 210 Armor Coverage 300 Resistance: EM 15 Propulsion Shielding 33 Evasion (%) 55 Targeting Accuracy 6 Melee Accuracy 6 Recoil Reduction 4 Offensive Hacking 10 Item Schematics ----------------- Lgt. Armor Plating | -10/Materials | Hacked Lrg. Storage Unit | -10/Materials | Hacked Hammer | -10/Materials | Hacked Thermic Laser | -7/Factory | Hacked Robot Schematics ------------------ None Fabricated ------------ Nothing Repaired ---------- Nothing Studied --------- Imp. Aluminum Leg | -9/Materials | Hacked Alien Tech Used ----------------- None Achievements -------------- None Challenges ------------ None Game ------ Seed FieldAssembledDisintegrator Manual? 0 Play Time 00:45:46 Cumulative 154.5 hours Start 2026.01.05 @ 17:24:32 End 2026.01.05 @ 18:19:18 Sessions 1 Manual Loads 0 Difficulty Rogue Special Mode None Game No. 265 Rogue 261 Adventurer 0 Explorer 4 Win Type - Total 0 Types 0/0/0/0/0/0/0/0/0/0 Lore% 19 Gallery% 40 Achievement% 25 Wizard Run 0 Options --------- Layout 1 ASCII 0 Keyboard 1 Movement Arrows Keybinds 0 Fullscreen 1 Font 32/SmallcapsGlow Map View 130x35 Zoom Use 0% Tactical HUD 1 Map Filters NONE Filters NONE Steam 1 RUN: 473e4de2-d7a6-42fc-91bb-c9935ecec5fc